[Event "Titled Tuesday Blitz May 03 Late 2022"]
[White "Migot, Tangi"]
[Black "Skliarov, Viktor"]
[WhiteFideId "662445"]
[BlackFideId "14106736"]
[WhiteElo "2519"]
[BlackElo "2229"]
[Result "0-1"]
[Round "09"]
[TimeControl "180+1"]
[Date "2022.05.03"]
[WhiteClock "0:00:12"]
[BlackClock "0:00:06"]

1. Nf3 {[%clk 0:03:00]}  g6 {[%clk 0:03:00]} 2. g3 {[%clk 0:03:01]}  Bg7 {[%clk 0:03:00]} 3. Bg2 {[%clk 0:03:01]}  Nf6 {[%clk 0:03:01]} 4. O-O {[%clk 0:03:02]}  O-O {[%clk 0:03:01]} 5. d4 {[%clk 0:03:02]}  d5 {[%clk 0:02:59]} 6. Na3 {[%clk 0:03:03]}  c6 {[%clk 0:02:46]} 7. c4 {[%clk 0:03:02]}  Bf5 {[%clk 0:02:45]} 8. Qb3 {[%clk 0:02:55]}  Qb6 {[%clk 0:02:44]} 9. cxd5 {[%clk 0:02:44]}  Qxb3 {[%clk 0:02:07]} 10. axb3 {[%clk 0:02:45]}  cxd5 {[%clk 0:02:08]} 11. Nb5 {[%clk 0:02:30]}  Nc6 {[%clk 0:01:49]} 12. Bd2 {[%clk 0:02:17]}  Ne4 {[%clk 0:01:39]} 13. Be3 {[%clk 0:02:06]}  a6 {[%clk 0:01:34]} 14. Nc3 {[%clk 0:02:04]}  Rad8 {[%clk 0:01:16]} 15. Rfc1 {[%clk 0:02:01]}  h6 {[%clk 0:01:00]} 16. h3 {[%clk 0:01:59]}  g5 {[%clk 0:00:59]} 17. g4 {[%clk 0:01:42]}  Bg6 {[%clk 0:00:58]} 18. h4 {[%clk 0:01:40]}  gxh4 {[%clk 0:00:50]} 19. Nxh4 {[%clk 0:01:40]}  Nxd4 {[%clk 0:00:21]} 20. Nxg6 {[%clk 0:01:32]}  fxg6 {[%clk 0:00:21]} 21. Bxd4 {[%clk 0:01:06]}  Bxd4 {[%clk 0:00:22]} 22. Bxe4 {[%clk 0:00:55]}  Bxf2+ {[%clk 0:00:14]} 23. Kg2 {[%clk 0:00:55]}  dxe4 {[%clk 0:00:15]} 24. Nxe4 {[%clk 0:00:51]}  Bb6 {[%clk 0:00:15]} 25. Rd1 {[%clk 0:00:46]}  Rxd1 {[%clk 0:00:12]} 26. Rxd1 {[%clk 0:00:46]}  Rf4 {[%clk 0:00:12]} 27. Nc3 {[%clk 0:00:40]}  Rxg4+ {[%clk 0:00:12]} 28. Kf3 {[%clk 0:00:40]}  Rb4 {[%clk 0:00:11]} 29. Rd7 {[%clk 0:00:35]}  Bc5 {[%clk 0:00:05]} 30. Ne4 {[%clk 0:00:27]}  Rxb3+ {[%clk 0:00:05]} 31. Kf4 {[%clk 0:00:27]}  Bd6+ {[%clk 0:00:05]} 32. Nxd6 {[%clk 0:00:26]}  exd6 {[%clk 0:00:06]} 33. Rxd6 {[%clk 0:00:27]}  Kf7 {[%clk 0:00:07]} 34. Rd2 {[%clk 0:00:19]}  Ke6 {[%clk 0:00:07]} 35. Rc2 {[%clk 0:00:19]}  Rb4+ {[%clk 0:00:06]} 36. e4 {[%clk 0:00:18]}  g5+ {[%clk 0:00:06]} 37. Ke3 {[%clk 0:00:18]}  Rb3+ {[%clk 0:00:06]} 38. Kd4 {[%clk 0:00:19]}  Rb4+ {[%clk 0:00:06]} 39. Ke3 {[%clk 0:00:19]}  h5 {[%clk 0:00:06]} 40. Rc5 {[%clk 0:00:18]}  Kf6 {[%clk 0:00:07]} 41. Rf5+ {[%clk 0:00:17]}  Kg6 {[%clk 0:00:07]} 42. Rf2 {[%clk 0:00:18]}  h4 {[%clk 0:00:07]} 43. e5 {[%clk 0:00:18]}  h3 {[%clk 0:00:07]} 44. e6 {[%clk 0:00:17]}  Rb6 {[%clk 0:00:07]} 45. e7 {[%clk 0:00:14]}  Re6+ {[%clk 0:00:07]} 46. Kf3 {[%clk 0:00:15]}  Rxe7 {[%clk 0:00:06]} 47. Kg3 {[%clk 0:00:15]}  Re3+ {[%clk 0:00:06]} 48. Kh2 {[%clk 0:00:16]}  Kh5 {[%clk 0:00:06]} 49. b4 {[%clk 0:00:16]}  Rb3 {[%clk 0:00:06]} 50. b5 {[%clk 0:00:13]}  axb5 {[%clk 0:00:05]} 51. Re2 {[%clk 0:00:13]}  g4 {[%clk 0:00:05]} 52. Rd2 {[%clk 0:00:13]}  Kh4 {[%clk 0:00:05]} 53. Rd8 {[%clk 0:00:13]}  g3+ {[%clk 0:00:05]} 54. Kg1 {[%clk 0:00:12]}  Rb1+ {[%clk 0:00:06]} 0-1


[Site "https://www.chess.com"]

[Event "Titled Tuesday Blitz May 03 Late 2022"]
[White "Mikhalsky, Vladimir"]
[Black "Stojanovski, Sandi"]
[WhiteFideId "14144352"]
[BlackFideId "1403249"]
[WhiteElo "2301"]
[BlackElo "2289"]
[Result "0-1"]
[Round "09"]
[TimeControl "180+1"]
[Date "2022.05.03"]
[WhiteClock "0:00:01"]
[BlackClock "0:00:02"]

1. e4 {[%clk 0:03:00]}  c5 {[%clk 0:02:58]} 2. Nf3 {[%clk 0:03:00]}  Nc6 {[%clk 0:02:58]} 3. d4 {[%clk 0:02:57]}  cxd4 {[%clk 0:02:58]} 4. Nxd4 {[%clk 0:02:57]}  Nf6 {[%clk 0:02:58]} 5. Nc3 {[%clk 0:02:57]}  e5 {[%clk 0:02:59]} 6. Ndb5 {[%clk 0:02:57]}  d6 {[%clk 0:02:59]} 7. Bg5 {[%clk 0:02:54]}  a6 {[%clk 0:02:59]} 8. Na3 {[%clk 0:02:54]}  b5 {[%clk 0:02:59]} 9. Nd5 {[%clk 0:02:55]}  Be7 {[%clk 0:02:59]} 10. Bxf6 {[%clk 0:02:55]}  Bxf6 {[%clk 0:02:59]} 11. c3 {[%clk 0:02:55]}  Bg5 {[%clk 0:02:59]} 12. Nc2 {[%clk 0:02:54]}  O-O {[%clk 0:02:59]} 13. h4 {[%clk 0:02:54]}  Bh6 {[%clk 0:02:58]} 14. g3 {[%clk 0:02:50]}  Be6 {[%clk 0:02:51]} 15. Bh3 {[%clk 0:02:48]}  Ne7 {[%clk 0:02:46]} 16. Ncb4 {[%clk 0:02:40]}  a5 {[%clk 0:02:39]} 17. Nxe7+ {[%clk 0:02:38]}  Qxe7 {[%clk 0:02:40]} 18. Nd5 {[%clk 0:02:36]}  Qb7 {[%clk 0:02:37]} 19. Qd3 {[%clk 0:01:50]}  Bxd5 {[%clk 0:02:36]} 20. exd5 {[%clk 0:01:45]}  e4 {[%clk 0:02:36]} 21. Qd4 {[%clk 0:01:43]}  Rae8 {[%clk 0:02:09]} 22. O-O {[%clk 0:01:43]}  Re5 {[%clk 0:02:00]} 23. Rad1 {[%clk 0:01:30]}  f5 {[%clk 0:01:59]} 24. Bg2 {[%clk 0:01:18]}  Qe7 {[%clk 0:00:42]} 25. Rfe1 {[%clk 0:01:15]}  g5 {[%clk 0:00:34]} 26. hxg5 {[%clk 0:01:14]}  Qxg5 {[%clk 0:00:33]} 27. c4 {[%clk 0:00:57]}  f4 {[%clk 0:00:30]} 28. Rxe4 {[%clk 0:00:53]}  Rxe4 {[%clk 0:00:16]} 29. Qxe4 {[%clk 0:00:38]}  fxg3 {[%clk 0:00:17]} 30. fxg3 {[%clk 0:00:31]}  Qxg3 {[%clk 0:00:14]} 31. Qe6+ {[%clk 0:00:29]}  Kh8 {[%clk 0:00:14]} 32. Qxh6 {[%clk 0:00:25]}  Rf2 {[%clk 0:00:11]} 33. Qh3 {[%clk 0:00:18]}  Qf4 {[%clk 0:00:09]} 34. Rf1 {[%clk 0:00:15]}  Rxf1+ {[%clk 0:00:09]} 35. Bxf1 {[%clk 0:00:15]}  Qd4+ {[%clk 0:00:08]} 36. Kh1 {[%clk 0:00:15]}  bxc4 {[%clk 0:00:09]} 37. Qg2 {[%clk 0:00:13]}  a4 {[%clk 0:00:06]} 38. a3 {[%clk 0:00:13]}  c3 {[%clk 0:00:06]} 39. bxc3 {[%clk 0:00:13]}  Qxc3 {[%clk 0:00:07]} 40. Qf2 {[%clk 0:00:13]}  Kg7 {[%clk 0:00:05]} 41. Qg2+ {[%clk 0:00:13]}  Kh8 {[%clk 0:00:05]} 42. Qf2 {[%clk 0:00:13]}  Kg7 {[%clk 0:00:05]} 43. Qf5 {[%clk 0:00:13]}  Qxa3 {[%clk 0:00:04]} 44. Qg5+ {[%clk 0:00:13]}  Kf7 {[%clk 0:00:04]} 45. Qf5+ {[%clk 0:00:13]}  Kg7 {[%clk 0:00:04]} 46. Qd7+ {[%clk 0:00:13]}  Kg8 {[%clk 0:00:03]} 47. Qe8+ {[%clk 0:00:13]}  Kg7 {[%clk 0:00:04]} 48. Qe7+ {[%clk 0:00:13]}  Kg8 {[%clk 0:00:04]} 49. Qf6 {[%clk 0:00:13]}  Qc5 {[%clk 0:00:02]} 50. Bg2 {[%clk 0:00:12]}  Qc1+ {[%clk 0:00:02]} 51. Kh2 {[%clk 0:00:11]}  Qc5 {[%clk 0:00:02]} 52. Qg5+ {[%clk 0:00:11]}  Kf8 {[%clk 0:00:02]} 53. Bh3 {[%clk 0:00:11]}  Qc2+ {[%clk 0:00:01]} 54. Kg3 {[%clk 0:00:12]}  Qd3+ {[%clk 0:00:01]} 55. Kh4 {[%clk 0:00:12]}  Qd4+ {[%clk 0:00:01]} 56. Kh5 {[%clk 0:00:11]}  Qe5 {[%clk 0:00:02]} 57. Qxe5 {[%clk 0:00:11]}  dxe5 {[%clk 0:00:02]} 58. Kg5 {[%clk 0:00:09]}  a3 {[%clk 0:00:02]} 59. d6 {[%clk 0:00:05]}  a2 {[%clk 0:00:03]} 60. Kf6 {[%clk 0:00:04]}  a1=Q {[%clk 0:00:03]} 61. d7 {[%clk 0:00:05]}  Qa6+ {[%clk 0:00:02]} 62. Be6 {[%clk 0:00:03]}  Qd6 {[%clk 0:00:01]} 63. Kf5 {[%clk 0:00:01]}  e4 {[%clk 0:00:02]} 0-1


[Site "https://www.chess.com"]

[Event "Titled Tuesday Blitz May 03 Late 2022"]
[White "Pakleza, Zbigniew"]
[Black "Korchmar, Vasiliy"]
[WhiteFideId "1119290"]
[BlackFideId "24131750"]
[WhiteElo "2467"]
[BlackElo "2370"]
[Result "0-1"]
[Round "09"]
[TimeControl "180+1"]
[Date "2022.05.03"]
[WhiteClock "0:00:08"]
[BlackClock "0:00:16"]

1. d4 {[%clk 0:03:00]}  d5 {[%clk 0:02:59]} 2. Bf4 {[%clk 0:03:00]}  Nf6 {[%clk 0:02:59]} 3. e3 {[%clk 0:03:00]}  c5 {[%clk 0:03:00]} 4. c3 {[%clk 0:03:00]}  Nc6 {[%clk 0:02:59]} 5. Nd2 {[%clk 0:03:00]}  Bf5 {[%clk 0:02:59]} 6. Ngf3 {[%clk 0:02:59]}  Qb6 {[%clk 0:02:51]} 7. Nh4 {[%clk 0:02:57]}  Bg4 {[%clk 0:02:45]} 8. Qb3 {[%clk 0:02:55]}  c4 {[%clk 0:02:44]} 9. Qc2 {[%clk 0:02:49]}  h6 {[%clk 0:02:35]} 10. Bg3 {[%clk 0:02:49]}  g5 {[%clk 0:02:26]} 11. Nhf3 {[%clk 0:02:46]}  Bg7 {[%clk 0:02:12]} 12. e4 {[%clk 0:02:32]}  Nxe4 {[%clk 0:01:58]} 13. Nxe4 {[%clk 0:02:30]}  dxe4 {[%clk 0:01:58]} 14. Nd2 {[%clk 0:02:27]}  Qd8 {[%clk 0:01:19]} 15. Bxc4 {[%clk 0:02:06]}  O-O {[%clk 0:01:19]} 16. Qxe4 {[%clk 0:01:57]}  Qd7 {[%clk 0:01:12]} 17. O-O {[%clk 0:01:28]}  Na5 {[%clk 0:01:12]} 18. f3 {[%clk 0:01:07]}  Nxc4 {[%clk 0:01:03]} 19. Nxc4 {[%clk 0:01:08]}  Bf5 {[%clk 0:01:01]} 20. Qe5 {[%clk 0:01:05]}  Bxe5 {[%clk 0:01:00]} 21. Nxe5 {[%clk 0:00:44]}  Qd5 {[%clk 0:00:55]} 22. f4 {[%clk 0:00:34]}  g4 {[%clk 0:00:54]} 23. Rfd1 {[%clk 0:00:30]}  f6 {[%clk 0:00:52]} 24. Nd3 {[%clk 0:00:30]}  Bxd3 {[%clk 0:00:51]} 25. Rxd3 {[%clk 0:00:31]}  b5 {[%clk 0:00:51]} 26. a3 {[%clk 0:00:31]}  a5 {[%clk 0:00:51]} 27. Re1 {[%clk 0:00:31]}  b4 {[%clk 0:00:48]} 28. f5 {[%clk 0:00:26]}  bxa3 {[%clk 0:00:46]} 29. bxa3 {[%clk 0:00:27]}  Qxf5 {[%clk 0:00:42]} 30. Rde3 {[%clk 0:00:26]}  Ra7 {[%clk 0:00:37]} 31. c4 {[%clk 0:00:24]}  Qc2 {[%clk 0:00:33]} 32. c5 {[%clk 0:00:23]}  a4 {[%clk 0:00:32]} 33. Bf4 {[%clk 0:00:21]}  h5 {[%clk 0:00:31]} 34. h3 {[%clk 0:00:22]}  Kf7 {[%clk 0:00:28]} 35. hxg4 {[%clk 0:00:18]}  hxg4 {[%clk 0:00:29]} 36. R3e2 {[%clk 0:00:14]}  Qd3 {[%clk 0:00:28]} 37. Be3 {[%clk 0:00:15]}  Qxa3 {[%clk 0:00:28]} 38. d5 {[%clk 0:00:15]}  Ra5 {[%clk 0:00:23]} 39. Rc2 {[%clk 0:00:12]}  Qd3 {[%clk 0:00:21]} 40. Rd2 {[%clk 0:00:12]}  Qc3 {[%clk 0:00:20]} 41. d6 {[%clk 0:00:11]}  Rxc5 {[%clk 0:00:19]} 42. dxe7 {[%clk 0:00:11]}  Re8 {[%clk 0:00:18]} 43. Red1 {[%clk 0:00:08]}  Qxe3+ {[%clk 0:00:16]} 0-1


[Site "https://www.chess.com"]

[Event "Titled Tuesday Blitz May 03 Late 2022"]
[White "Petrovic, Aleksa"]
[Black "Sargsyan, Anna M."]
[WhiteFideId "967629"]
[BlackFideId "13308130"]
[WhiteElo "2198"]
[BlackElo "2271"]
[Result "0-1"]
[Round "09"]
[TimeControl "180+1"]
[Date "2022.05.03"]
[WhiteClock "0:00:01"]
[BlackClock "0:00:05"]

1. d4 {[%clk 0:03:00]}  d5 {[%clk 0:02:58]} 2. c4 {[%clk 0:03:01]}  c6 {[%clk 0:02:59]} 3. Nc3 {[%clk 0:03:00]}  Nf6 {[%clk 0:02:59]} 4. e3 {[%clk 0:03:00]}  e6 {[%clk 0:02:54]} 5. Nf3 {[%clk 0:03:00]}  Nbd7 {[%clk 0:02:55]} 6. Qc2 {[%clk 0:02:59]}  Bd6 {[%clk 0:02:49]} 7. Bd3 {[%clk 0:02:59]}  O-O {[%clk 0:02:46]} 8. O-O {[%clk 0:02:58]}  Qe7 {[%clk 0:02:40]} 9. c5 {[%clk 0:02:45]}  Bc7 {[%clk 0:02:38]} 10. e4 {[%clk 0:02:45]}  dxe4 {[%clk 0:02:37]} 11. Nxe4 {[%clk 0:02:44]}  h6 {[%clk 0:02:35]} 12. Rd1 {[%clk 0:02:39]}  Nd5 {[%clk 0:02:35]} 13. Bd2 {[%clk 0:02:35]}  e5 {[%clk 0:02:32]} 14. Nd6 {[%clk 0:02:18]}  Bxd6 {[%clk 0:02:20]} 15. cxd6 {[%clk 0:02:19]}  Qxd6 {[%clk 0:02:20]} 16. dxe5 {[%clk 0:02:10]}  Nxe5 {[%clk 0:02:20]} 17. Bh7+ {[%clk 0:02:01]}  Kh8 {[%clk 0:02:19]} 18. Be4 {[%clk 0:02:02]}  Nxf3+ {[%clk 0:02:15]} 19. Bxf3 {[%clk 0:02:01]}  Be6 {[%clk 0:02:13]} 20. a3 {[%clk 0:01:57]}  Rfe8 {[%clk 0:02:09]} 21. g3 {[%clk 0:01:51]}  Rad8 {[%clk 0:02:05]} 22. Bc3 {[%clk 0:01:38]}  Kg8 {[%clk 0:02:00]} 23. b3 {[%clk 0:01:24]}  Qc5 {[%clk 0:01:57]} 24. Bxd5 {[%clk 0:01:17]}  Bxd5 {[%clk 0:01:52]} 25. Qb2 {[%clk 0:01:16]}  f6 {[%clk 0:01:30]} 26. Re1 {[%clk 0:01:05]}  Qb5 {[%clk 0:01:26]} 27. Rxe8+ {[%clk 0:01:01]}  Rxe8 {[%clk 0:01:26]} 28. Qc2 {[%clk 0:00:52]}  Re2 {[%clk 0:01:06]} 29. Qf5 {[%clk 0:00:43]}  Qxb3 {[%clk 0:00:57]} 30. Bxf6 {[%clk 0:00:33]}  Qf3 {[%clk 0:00:48]} 31. Qxf3 {[%clk 0:00:29]}  Bxf3 {[%clk 0:00:49]} 32. Bd4 {[%clk 0:00:29]}  b6 {[%clk 0:00:48]} 33. a4 {[%clk 0:00:23]}  c5 {[%clk 0:00:48]} 34. Be3 {[%clk 0:00:22]}  c4 {[%clk 0:00:37]} 35. h3 {[%clk 0:00:22]}  c3 {[%clk 0:00:31]} 36. g4 {[%clk 0:00:21]}  c2 {[%clk 0:00:23]} 37. Rc1 {[%clk 0:00:18]}  Kf7 {[%clk 0:00:22]} 38. Kh2 {[%clk 0:00:18]}  Ke6 {[%clk 0:00:21]} 39. Kg3 {[%clk 0:00:18]}  Bc6 {[%clk 0:00:20]} 40. a5 {[%clk 0:00:16]}  bxa5 {[%clk 0:00:21]} 41. Bxa7 {[%clk 0:00:13]}  a4 {[%clk 0:00:21]} 42. Bc5 {[%clk 0:00:11]}  Kd5 {[%clk 0:00:20]} 43. Bb4 {[%clk 0:00:08]}  Kc4 {[%clk 0:00:19]} 44. Bf8 {[%clk 0:00:08]}  Kb3 {[%clk 0:00:13]} 45. Bxg7 {[%clk 0:00:08]}  a3 {[%clk 0:00:12]} 46. Bxh6 {[%clk 0:00:07]}  Kb2 {[%clk 0:00:11]} 47. h4 {[%clk 0:00:06]}  a2 {[%clk 0:00:11]} 48. h5 {[%clk 0:00:07]}  Re6 {[%clk 0:00:09]} 49. Bf4 {[%clk 0:00:05]}  a1=Q {[%clk 0:00:05]} 50. Rxa1 {[%clk 0:00:05]}  Kxa1 {[%clk 0:00:05]} 51. g5 {[%clk 0:00:05]}  Be4 {[%clk 0:00:05]} 52. Kg4 {[%clk 0:00:03]}  Kb2 {[%clk 0:00:05]} 53. g6 {[%clk 0:00:03]}  Bxg6 {[%clk 0:00:05]} 54. hxg6 {[%clk 0:00:04]}  Rxg6+ {[%clk 0:00:06]} 55. Kf5 {[%clk 0:00:04]}  Rg2 {[%clk 0:00:06]} 56. Ke4 {[%clk 0:00:02]}  Rxf2 {[%clk 0:00:06]} 57. Be5+ {[%clk 0:00:01]}  Kb1 {[%clk 0:00:05]} 58. Bf4 {[%clk 0:00:01]}  Rxf4+ {[%clk 0:00:05]} 0-1


[Site "https://www.chess.com"]

[Event "Titled Tuesday Blitz May 03 Late 2022"]
[White "Piesik, Piotr"]
[Black "Tristan, Leonardo"]
[WhiteFideId "1136194"]
[BlackFideId "113816"]
[WhiteElo "2190"]
[BlackElo "2404"]
[Result "1/2-1/2"]
[Round "09"]
[TimeControl "180+1"]
[Date "2022.05.03"]
[WhiteClock "0:00:09"]
[BlackClock "0:00:05"]

1. Nf3 {[%clk 0:03:00]}  d5 {[%clk 0:03:00]} 2. g3 {[%clk 0:03:00]}  Nf6 {[%clk 0:03:00]} 3. Bg2 {[%clk 0:03:01]}  Bf5 {[%clk 0:03:01]} 4. O-O {[%clk 0:03:01]}  e6 {[%clk 0:03:01]} 5. d3 {[%clk 0:03:02]}  Be7 {[%clk 0:03:00]} 6. Nbd2 {[%clk 0:03:02]}  O-O {[%clk 0:03:00]} 7. Qe1 {[%clk 0:03:03]}  h6 {[%clk 0:02:59]} 8. e4 {[%clk 0:03:03]}  Bh7 {[%clk 0:03:00]} 9. Qe2 {[%clk 0:03:04]}  c5 {[%clk 0:03:00]} 10. Ne5 {[%clk 0:02:59]}  Nbd7 {[%clk 0:03:00]} 11. Nxd7 {[%clk 0:02:58]}  Qxd7 {[%clk 0:03:01]} 12. e5 {[%clk 0:02:54]}  Ne8 {[%clk 0:03:00]} 13. f4 {[%clk 0:02:54]}  Qa4 {[%clk 0:02:59]} 14. Nf3 {[%clk 0:02:51]}  Nc7 {[%clk 0:02:59]} 15. b3 {[%clk 0:02:49]}  Qa6 {[%clk 0:02:55]} 16. c4 {[%clk 0:02:46]}  Rfd8 {[%clk 0:02:54]} 17. Be3 {[%clk 0:02:45]}  dxc4 {[%clk 0:02:52]} 18. dxc4 {[%clk 0:02:44]}  Bd3 {[%clk 0:02:52]} 19. Qf2 {[%clk 0:02:45]}  Bxf1 {[%clk 0:02:53]} 20. Rxf1 {[%clk 0:02:44]}  Rd3 {[%clk 0:02:45]} 21. Bxc5 {[%clk 0:02:41]}  Bxc5 {[%clk 0:02:44]} 22. Qxc5 {[%clk 0:02:42]}  Qb6 {[%clk 0:02:44]} 23. Qxb6 {[%clk 0:02:39]}  axb6 {[%clk 0:02:45]} 24. Rf2 {[%clk 0:02:40]}  Rd1+ {[%clk 0:02:44]} 25. Bf1 {[%clk 0:02:39]}  Ra1 {[%clk 0:02:38]} 26. a4 {[%clk 0:02:38]}  Rb1 {[%clk 0:02:33]} 27. Nd2 {[%clk 0:02:29]}  Rb2 {[%clk 0:02:34]} 28. Bg2 {[%clk 0:02:29]}  Rd8 {[%clk 0:02:32]} 29. Ne4 {[%clk 0:02:29]}  Rd1+ {[%clk 0:02:19]} 30. Bf1 {[%clk 0:02:28]}  Rxb3 {[%clk 0:02:09]} 31. Nd6 {[%clk 0:02:27]}  Na6 {[%clk 0:02:05]} 32. Nxb7 {[%clk 0:02:16]}  Nc5 {[%clk 0:02:04]} 33. Nd6 {[%clk 0:02:00]}  Nxa4 {[%clk 0:02:03]} 34. Kg2 {[%clk 0:01:56]}  Rb2 {[%clk 0:01:55]} 35. Rxb2 {[%clk 0:01:56]}  Nxb2 {[%clk 0:01:56]} 36. Nc8 {[%clk 0:01:48]}  Rd2+ {[%clk 0:01:55]} 37. Kf3 {[%clk 0:01:47]}  Na4 {[%clk 0:01:53]} 38. h4 {[%clk 0:01:44]}  h5 {[%clk 0:01:48]} 39. Be2 {[%clk 0:01:44]}  Kf8 {[%clk 0:01:47]} 40. Ke3 {[%clk 0:01:44]}  Rb2 {[%clk 0:01:43]} 41. Bxh5 {[%clk 0:01:42]}  Rb3+ {[%clk 0:01:43]} 42. Kf2 {[%clk 0:01:41]}  Rc3 {[%clk 0:01:39]} 43. Nd6 {[%clk 0:01:39]}  g6 {[%clk 0:01:40]} 44. Be2 {[%clk 0:01:39]}  Nc5 {[%clk 0:01:31]} 45. h5 {[%clk 0:01:32]}  Kg7 {[%clk 0:00:42]} 46. h6+ {[%clk 0:01:20]}  Kxh6 {[%clk 0:00:40]} 47. Nxf7+ {[%clk 0:01:20]}  Kg7 {[%clk 0:00:40]} 48. Nd6 {[%clk 0:01:21]}  Nd3+ {[%clk 0:00:31]} 49. Bxd3 {[%clk 0:01:12]}  Rxd3 {[%clk 0:00:32]} 50. g4 {[%clk 0:01:12]}  Rb3 {[%clk 0:00:23]} 51. Ke2 {[%clk 0:01:02]}  Kf8 {[%clk 0:00:22]} 52. f5 {[%clk 0:00:58]}  exf5 {[%clk 0:00:20]} 53. gxf5 {[%clk 0:00:59]}  gxf5 {[%clk 0:00:21]} 54. Nxf5 {[%clk 0:01:00]}  Kf7 {[%clk 0:00:21]} 55. Kd2 {[%clk 0:00:56]}  Rh3 {[%clk 0:00:19]} 56. Nd4 {[%clk 0:00:55]}  Rh5 {[%clk 0:00:09]} 57. e6+ {[%clk 0:00:43]}  Ke7 {[%clk 0:00:10]} 58. Kc3 {[%clk 0:00:43]}  Kd6 {[%clk 0:00:07]} 59. Kb4 {[%clk 0:00:40]}  Rc5 {[%clk 0:00:06]} 60. Kc3 {[%clk 0:00:33]}  Rc8 {[%clk 0:00:04]} 61. Kb4 {[%clk 0:00:32]}  Ke5 {[%clk 0:00:02]} 62. Nb3 {[%clk 0:00:23]}  Kxe6 {[%clk 0:00:02]} 63. Kb5 {[%clk 0:00:23]}  Rb8 {[%clk 0:00:02]} 64. Kc6 {[%clk 0:00:19]}  Rc8+ {[%clk 0:00:02]} 65. Kb5 {[%clk 0:00:17]}  Kd6 {[%clk 0:00:02]} 66. Nd4 {[%clk 0:00:15]}  Rc5+ {[%clk 0:00:02]} 67. Kb4 {[%clk 0:00:15]}  Rh5 {[%clk 0:00:02]} 68. Nb5+ {[%clk 0:00:13]}  Kc6 {[%clk 0:00:02]} 69. Nd4+ {[%clk 0:00:14]}  Kb7 {[%clk 0:00:03]} 70. Nb5 {[%clk 0:00:14]}  Rh4 {[%clk 0:00:03]} 71. Nd6+ {[%clk 0:00:14]}  Kc6 {[%clk 0:00:04]} 72. Nb5 {[%clk 0:00:14]}  Rg4 {[%clk 0:00:03]} 73. Na7+ {[%clk 0:00:14]}  Kd6 {[%clk 0:00:03]} 74. Nb5+ {[%clk 0:00:15]}  Kd7 {[%clk 0:00:03]} 75. Nc3 {[%clk 0:00:15]}  Rg1 {[%clk 0:00:04]} 76. Kb5 {[%clk 0:00:12]}  Kc7 {[%clk 0:00:04]} 77. Nd5+ {[%clk 0:00:12]}  Kb7 {[%clk 0:00:05]} 78. Nb4 {[%clk 0:00:10]}  Rb1 {[%clk 0:00:05]} 79. Ka4 {[%clk 0:00:10]}  Kc7 {[%clk 0:00:05]} 80. Kb5 {[%clk 0:00:10]}  Rb2 {[%clk 0:00:05]} 81. c5 {[%clk 0:00:08]}  bxc5 {[%clk 0:00:04]} 82. Kxc5 {[%clk 0:00:09]}  Rh2 {[%clk 0:00:05]} 83. Nd5+ {[%clk 0:00:09]}  Kb7 {[%clk 0:00:05]} 84. Kd6 {[%clk 0:00:09]}  Rd2 {[%clk 0:00:05]} 85. Kc5 {[%clk 0:00:09]}  Ka6 {[%clk 0:00:05]} 86. Nb4+ {[%clk 0:00:08]}  Kb7 {[%clk 0:00:06]} 87. Nd5 {[%clk 0:00:09]}  Rd1 {[%clk 0:00:06]} 88. Nb4 {[%clk 0:00:08]}  Kc7 {[%clk 0:00:06]} 89. Nd5+ {[%clk 0:00:09]}  Kd7 {[%clk 0:00:07]} 90. Nb6+ {[%clk 0:00:09]}  Ke6 {[%clk 0:00:07]} 91. Nc4 {[%clk 0:00:09]}  Rc1 {[%clk 0:00:07]} 92. Kd4 {[%clk 0:00:10]}  Kf5 {[%clk 0:00:07]} 93. Ne3+ {[%clk 0:00:10]}  Ke6 {[%clk 0:00:07]} 94. Nc4 {[%clk 0:00:10]}  Rd1+ {[%clk 0:00:08]} 95. Ke4 {[%clk 0:00:10]}  Rd8 {[%clk 0:00:09]} 96. Ne3 {[%clk 0:00:09]}  Ra8 {[%clk 0:00:09]} 97. Kd4 {[%clk 0:00:09]}  Ra4+ {[%clk 0:00:09]} 98. Nc4 {[%clk 0:00:10]}  Ra8 {[%clk 0:00:08]} 99. Ne3 {[%clk 0:00:09]}  Rh8 {[%clk 0:00:09]} 100. Nc4 {[%clk 0:00:09]}  Rh4+ {[%clk 0:00:09]} 101. Kc5 {[%clk 0:00:09]}  Rh5+ {[%clk 0:00:09]} 102. Kd4 {[%clk 0:00:10]}  Rd5+ {[%clk 0:00:08]} 103. Ke4 {[%clk 0:00:10]}  Rd8 {[%clk 0:00:08]} 104. Ne3 {[%clk 0:00:10]}  Kd6 {[%clk 0:00:08]} 105. Nc4+ {[%clk 0:00:10]}  Kc5 {[%clk 0:00:09]} 106. Ne3 {[%clk 0:00:09]}  Re8+ {[%clk 0:00:09]} 107. Kd3 {[%clk 0:00:10]}  Re7 {[%clk 0:00:08]} 108. Nc2 {[%clk 0:00:08]}  Rd7+ {[%clk 0:00:07]} 109. Ke4 {[%clk 0:00:08]}  Rd8 {[%clk 0:00:04]} 110. Ne3 {[%clk 0:00:09]}  Re8+ {[%clk 0:00:05]} 111. Kd3 {[%clk 0:00:09]}  Re7 {[%clk 0:00:05]} 112. Nc2 {[%clk 0:00:09]}  Rh7 {[%clk 0:00:04]} 113. Ne3 {[%clk 0:00:09]}  Rh4 {[%clk 0:00:04]} 114. Nc2 {[%clk 0:00:09]}  Rh3+ {[%clk 0:00:02]} 115. Ne3 {[%clk 0:00:08]}  Rg3 {[%clk 0:00:03]} 116. Ke4 {[%clk 0:00:09]}  Rg7 {[%clk 0:00:03]} 117. Nf5 {[%clk 0:00:08]}  Rd7 {[%clk 0:00:03]} 118. Ne3 {[%clk 0:00:08]}  Re7+ {[%clk 0:00:04]} 119. Kd3 {[%clk 0:00:09]}  Ra7 {[%clk 0:00:03]} 120. Nc2 {[%clk 0:00:09]}  Rd7+ {[%clk 0:00:02]} 121. Ke4 {[%clk 0:00:08]}  Rh7 {[%clk 0:00:03]} 122. Ne3 {[%clk 0:00:09]}  Rh4+ {[%clk 0:00:03]} 123. Kd3 {[%clk 0:00:09]}  Ra4 {[%clk 0:00:04]} 124. Nc2 {[%clk 0:00:09]}  Rc4 {[%clk 0:00:04]} 125. Ne3 {[%clk 0:00:09]}  Rc2 {[%clk 0:00:05]} 126. Nxc2 {[%clk 0:00:09]} 1/2-1/2


[Site "https://www.chess.com"]

[Event "Titled Tuesday Blitz May 03 Late 2022"]
[White "Reprintsev, Alexander"]
[Black "Tanenbaum, Zachary"]
[WhiteFideId "14100541"]
[BlackFideId "2060850"]
[WhiteElo "2108"]
[BlackElo "2168"]
[Result "0-1"]
[Round "09"]
[TimeControl "180+1"]
[Date "2022.05.03"]
[WhiteClock "0:00:30"]
[BlackClock "0:00:24"]

1. e4 {[%clk 0:02:54]}  e5 {[%clk 0:02:59]} 2. f4 {[%clk 0:02:53]}  exf4 {[%clk 0:02:59]} 3. Bc4 {[%clk 0:02:53]}  d5 {[%clk 0:02:59]} 4. Bxd5 {[%clk 0:02:53]}  Qh4+ {[%clk 0:02:59]} 5. Kf1 {[%clk 0:02:52]}  Nf6 {[%clk 0:03:00]} 6. Nf3 {[%clk 0:02:52]}  Qh6 {[%clk 0:02:53]} 7. Nc3 {[%clk 0:02:48]}  c6 {[%clk 0:02:51]} 8. Bc4 {[%clk 0:02:48]}  Bg4 {[%clk 0:02:49]} 9. d4 {[%clk 0:02:39]}  Nbd7 {[%clk 0:02:47]} 10. Qd3 {[%clk 0:02:28]}  O-O-O {[%clk 0:02:44]} 11. Bxf7 {[%clk 0:02:22]}  Nc5 {[%clk 0:02:30]} 12. Qc4 {[%clk 0:01:56]}  Ncxe4 {[%clk 0:00:38]} 13. Nxe4 {[%clk 0:01:56]}  Nxe4 {[%clk 0:00:36]} 14. d5 {[%clk 0:01:25]}  Nd6 {[%clk 0:00:32]} 15. Qa4 {[%clk 0:00:45]}  Nxf7 {[%clk 0:00:28]} 16. Bxf4 {[%clk 0:00:45]}  Qf6 {[%clk 0:00:23]} 17. dxc6 {[%clk 0:00:36]}  Qxc6 {[%clk 0:00:24]} 18. Qxa7 {[%clk 0:00:35]}  Qc4+ {[%clk 0:00:24]} 19. Kf2 {[%clk 0:00:30]}  Bc5+ {[%clk 0:00:24]} 0-1


[Site "https://www.chess.com"]